[Event "*** Titled Tuesday Blitz"]
[Site "Chess.com"]
[Date "2020.12.01"]
[Round "10"]
[White "Dreamer_01"]
[Black "FMOlexandrProhorov"]
[Result "1-0"]
[WhiteElo "2366"]
[BlackElo "2206"]
[TimeControl "180+1"]
[EndTime "11:54:33 PST"]
[Termination "Dreamer_01 won on time"]

1. d4 {[%clk 0:03:00.9]} 1... g6 {[%clk 0:02:54.9]} 2. e4 {[%clk 0:02:58.7]}
2... Bg7 {[%clk 0:02:55.8]} 3. Nc3 {[%clk 0:02:58.8]} 3... c6 {[%clk 0:02:55.8]}
4. Be3 {[%clk 0:02:58.4]} 4... d5 {[%clk 0:02:55.9]} 5. e5 {[%clk 0:02:57.8]}
5... f6 {[%clk 0:02:51.3]} 6. exf6 {[%clk 0:02:55.2]} 6... exf6 {[%clk 0:02:51]}
7. h4 {[%clk 0:02:53.5]} 7... Nh6 {[%clk 0:02:41.6]} 8. Be2 {[%clk 0:02:49.3]}
8... Nf5 {[%clk 0:02:31.8]} 9. Bf4 {[%clk 0:02:46.4]} 9... Qb6 {[%clk
0:02:27.3]} 10. Nf3 {[%clk 0:02:33.5]} 10... Qxb2 {[%clk 0:02:22.2]} 11. Na4
{[%clk 0:02:33.2]} 11... Qb4+ {[%clk 0:02:18.9]} 12. c3 {[%clk 0:02:33.1]} 12...
Qe7 {[%clk 0:02:15.5]} 13. O-O {[%clk 0:02:14.3]} 13... O-O {[%clk 0:02:15.5]}
14. Re1 {[%clk 0:02:14.1]} 14... Qd8 {[%clk 0:02:10]} 15. c4 {[%clk 0:02:11]}
15... b6 {[%clk 0:01:46.4]} 16. cxd5 {[%clk 0:02:08.9]} 16... cxd5 {[%clk
0:01:46.2]} 17. Rc1 {[%clk 0:02:08.2]} 17... Be6 {[%clk 0:01:43.4]} 18. Bb5
{[%clk 0:02:00.9]} 18... Bf7 {[%clk 0:01:32.7]} 19. Bc7 {[%clk 0:01:59.5]} 19...
Qc8 {[%clk 0:01:24.8]} 20. Bd6 {[%clk 0:01:50.5]} 20... Nxd6 {[%clk 0:01:17.2]}
21. Rxc8 {[%clk 0:01:49.7]} 21... Nxc8 {[%clk 0:01:17.4]} 22. Nc3 {[%clk
0:01:40.4]} 22... Nd6 {[%clk 0:01:14.5]} 23. Ba4 {[%clk 0:01:39.7]} 23... Na6
{[%clk 0:01:04.6]} 24. Bb3 {[%clk 0:01:38.8]} 24... Nc7 {[%clk 0:01:03.2]} 25.
Re7 {[%clk 0:01:37]} 25... Rac8 {[%clk 0:01:01.4]} 26. Rd7 {[%clk 0:01:21.6]}
26... Rfd8 {[%clk 0:00:59.1]} 27. Rxd8+ {[%clk 0:01:21.6]} 27... Rxd8 {[%clk
0:01:00]} 28. Qc1 {[%clk 0:01:18.4]} 28... Nc4 {[%clk 0:00:56.6]} 29. Nxd5
{[%clk 0:01:13.3]} 29... Nxd5 {[%clk 0:00:48.2]} 30. Qxc4 {[%clk 0:01:12.4]}
30... Rf8 {[%clk 0:00:23.5]} 31. Qc6 {[%clk 0:01:04.3]} 31... Nf4 {[%clk
0:00:19.7]} 32. Qc7 {[%clk 0:00:59]} 32... Bxb3 {[%clk 0:00:18.6]} 33. axb3
{[%clk 0:00:58.1]} 33... Ne6 {[%clk 0:00:13.2]} 34. Qc4 {[%clk 0:00:55]} 34...
Kf7 {[%clk 0:00:10.4]} 35. d5 {[%clk 0:00:54.3]} 35... Nc5 {[%clk 0:00:08.5]}
36. b4 {[%clk 0:00:54]} 36... Nd7 {[%clk 0:00:07.7]} 37. d6+ {[%clk 0:00:53.7]}
37... Ke8 {[%clk 0:00:02.8]} 38. Qc8+ {[%clk 0:00:52.9]} 38... Kf7 {[%clk
0:00:03.2]} 39. Qxd7+ {[%clk 0:00:53.5]} 39... Kg8 {[%clk 0:00:03.1]} 40. Qe6+
{[%clk 0:00:53.7]} 40... Kh8 {[%clk 0:00:01.3]} 41. d7 {[%clk 0:00:53.8]} 1-0

[Event "*** Titled Tuesday Blitz"]
[Site "Chess.com"]
[Date "2020.12.01"]
[Round "10"]
[White "skoularikii"]
[Black "stepanosinovsky"]
[Result "1-0"]
[WhiteElo "2451"]
[BlackElo "2303"]
[TimeControl "180+1"]
[EndTime "11:54:34 PST"]
[Termination "skoularikii won on time"]

1. e4 {[%clk 0:03:00.9]} 1... e5 {[%clk 0:02:59.7]} 2. Nf3 {[%clk 0:03:00.9]}
2... Nc6 {[%clk 0:03:00.3]} 3. Bc4 {[%clk 0:03:00.5]} 3... Nf6 {[%clk
0:03:00.3]} 4. Nc3 {[%clk 0:03:00]} 4... Bb4 {[%clk 0:02:56]} 5. d3 {[%clk
0:02:58.6]} 5... d6 {[%clk 0:02:55.2]} 6. O-O {[%clk 0:02:58.6]} 6... h6 {[%clk
0:02:54]} 7. Ne2 {[%clk 0:02:58.5]} 7... Na5 {[%clk 0:02:46.3]} 8. Ng3 {[%clk
0:02:56.6]} 8... Nxc4 {[%clk 0:02:45.4]} 9. dxc4 {[%clk 0:02:57.5]} 9... Be6
{[%clk 0:02:40.1]} 10. b3 {[%clk 0:02:46.6]} 10... Qd7 {[%clk 0:02:39.6]} 11. a4
{[%clk 0:02:42.4]} 11... c6 {[%clk 0:02:06.5]} 12. a5 {[%clk 0:02:29.2]} 12...
Bc5 {[%clk 0:02:01.1]} 13. Qd2 {[%clk 0:01:54.8]} 13... a6 {[%clk 0:01:59.7]}
14. Ne1 {[%clk 0:01:44]} 14... h5 {[%clk 0:01:37.1]} 15. h4 {[%clk 0:01:43.8]}
15... Ng4 {[%clk 0:01:36.2]} 16. Nd3 {[%clk 0:01:39.2]} 16... Ba7 {[%clk
0:01:31.6]} 17. Ba3 {[%clk 0:01:16.2]} 17... Qe7 {[%clk 0:01:19.9]} 18. Qg5
{[%clk 0:01:15]} 18... f6 {[%clk 0:01:17.8]} 19. Qg6+ {[%clk 0:01:09.2]} 19...
Bf7 {[%clk 0:01:16.5]} 20. Qf5 {[%clk 0:01:09.2]} 20... Be6 {[%clk 0:00:44.2]}
21. Qg6+ {[%clk 0:00:59.6]} 21... Bf7 {[%clk 0:00:43.8]} 22. Qf5 {[%clk
0:00:59.5]} 22... g6 {[%clk 0:00:43.7]} 23. Qf3 {[%clk 0:00:59.3]} 23... Be6
{[%clk 0:00:23.8]} 24. Rfd1 {[%clk 0:00:51.8]} 24... O-O-O {[%clk 0:00:22]} 25.
c5 {[%clk 0:00:25.9]} 25... dxc5 {[%clk 0:00:13.2]} 26. c4 {[%clk 0:00:26]}
26... Rd7 {[%clk 0:00:07.7]} 27. Ne2 {[%clk 0:00:24.2]} 27... Rhd8 {[%clk
0:00:07.5]} 28. g3 {[%clk 0:00:23]} 28... f5 {[%clk 0:00:06.5]} 29. Nc3 {[%clk
0:00:22.3]} 1-0

[Event "*** Titled Tuesday Blitz"]
[Site "Chess.com"]
[Date "2020.12.01"]
[Round "10"]
[White "GelmanAlexander"]
[Black "InitiatingASC"]
[Result "1-0"]
[WhiteElo "2577"]
[BlackElo "2421"]
[TimeControl "180+1"]
[EndTime "11:54:35 PST"]
[Termination "GelmanAlexander won on time"]

1. d4 {[%clk 0:03:00.9]} 1... Nf6 {[%clk 0:02:59.3]} 2. Nc3 {[%clk 0:03:00.6]}
2... e6 {[%clk 0:02:59.7]} 3. Bf4 {[%clk 0:03:00.6]} 3... b6 {[%clk 0:02:53.2]}
4. e4 {[%clk 0:02:59.4]} 4... Bb7 {[%clk 0:02:51.3]} 5. e5 {[%clk 0:02:56.1]}
5... Nd5 {[%clk 0:02:51.4]} 6. Nxd5 {[%clk 0:02:55.2]} 6... Bxd5 {[%clk
0:02:51]} 7. Qg4 {[%clk 0:02:45.8]} 7... h5 {[%clk 0:02:44.1]} 8. Qg3 {[%clk
0:02:43.2]} 8... g6 {[%clk 0:02:39.8]} 9. h4 {[%clk 0:02:31.2]} 9... Nc6 {[%clk
0:02:13.1]} 10. O-O-O {[%clk 0:02:21.5]} 10... Ne7 {[%clk 0:02:12.1]} 11. c4
{[%clk 0:02:14.3]} 11... Nf5 {[%clk 0:02:06.1]} 12. Qb3 {[%clk 0:02:06.3]} 12...
Bb7 {[%clk 0:02:02.5]} 13. d5 {[%clk 0:02:01.4]} 13... Qe7 {[%clk 0:01:54.5]}
14. a3 {[%clk 0:01:51.2]} 14... Qc5 {[%clk 0:01:40.3]} 15. Kb1 {[%clk
0:01:37.6]} 15... Qxf2 {[%clk 0:01:32.3]} 16. Nf3 {[%clk 0:01:36.9]} 16... O-O-O
{[%clk 0:01:24.4]} 17. Rd2 {[%clk 0:01:28]} 17... Qc5 {[%clk 0:01:19.1]} 18. Ng5
{[%clk 0:01:21.8]} 18... Bh6 {[%clk 0:01:10]} 19. Be2 {[%clk 0:01:01]} 19...
Rhf8 {[%clk 0:00:51.2]} 20. g3 {[%clk 0:00:57.2]} 20... Nd4 {[%clk 0:00:39.4]}
21. Qd3 {[%clk 0:00:27.8]} 21... Nxe2 {[%clk 0:00:34.3]} 22. Qxe2 {[%clk
0:00:28.7]} 22... exd5 {[%clk 0:00:34]} 23. cxd5 {[%clk 0:00:29.2]} 23... Bxd5
{[%clk 0:00:34.2]} 24. Rc1 {[%clk 0:00:29.2]} 24... Qa5 {[%clk 0:00:34.2]} 25.
e6 {[%clk 0:00:26.7]} 25... c6 {[%clk 0:00:06.8]} 26. e7 {[%clk 0:00:25]} 26...
Rfe8 {[%clk 0:00:04.5]} 27. exd8=Q+ {[%clk 0:00:24]} 27... Kxd8 {[%clk
0:00:05.1]} 28. Qd1 {[%clk 0:00:19.3]} 28... Bg7 {[%clk 0:00:02.7]} 29. Nxf7+
{[%clk 0:00:18.2]} 1-0

[Event "*** Titled Tuesday Blitz"]
[Site "Chess.com"]
[Date "2020.12.01"]
[Round "10"]
[White "PawnEatingZombie"]
[Black "Xeniya2005"]
[Result "0-1"]
[WhiteElo "2197"]
[BlackElo "2436"]
[TimeControl "180+1"]
[EndTime "11:54:35 PST"]
[Termination "Xeniya2005 won by resignation"]

1. d4 {[%clk 0:03:00.9]} 1... Nf6 {[%clk 0:02:58.8]} 2. c4 {[%clk 0:03:01]} 2...
e6 {[%clk 0:02:57.2]} 3. Nc3 {[%clk 0:03:01.5]} 3... Bb4 {[%clk 0:02:53.6]} 4.
Qc2 {[%clk 0:03:01.7]} 4... d5 {[%clk 0:02:52.8]} 5. cxd5 {[%clk 0:03:01]} 5...
exd5 {[%clk 0:02:52.2]} 6. Bf4 {[%clk 0:03:00.2]} 6... c6 {[%clk 0:02:49.1]} 7.
e3 {[%clk 0:02:59.2]} 7... O-O {[%clk 0:02:48.4]} 8. Bd3 {[%clk 0:02:58.8]} 8...
Be6 {[%clk 0:02:46.6]} 9. Ne2 {[%clk 0:02:58.4]} 9... h6 {[%clk 0:02:44.8]} 10.
h3 {[%clk 0:02:51.9]} 10... Nbd7 {[%clk 0:02:43.8]} 11. O-O {[%clk 0:02:51.9]}
11... Nb6 {[%clk 0:02:41.4]} 12. Rad1 {[%clk 0:02:48.3]} 12... Bd6 {[%clk
0:02:39.2]} 13. f3 {[%clk 0:02:42.7]} 13... Re8 {[%clk 0:02:34.8]} 14. Bxd6
{[%clk 0:02:24.6]} 14... Qxd6 {[%clk 0:02:29.5]} 15. e4 {[%clk 0:02:25.5]} 15...
dxe4 {[%clk 0:02:18.4]} 16. fxe4 {[%clk 0:02:26.4]} 16... Qd7 {[%clk 0:02:14.5]}
17. Rf3 {[%clk 0:02:13.5]} 17... Rad8 {[%clk 0:02:01.2]} 18. Rdf1 {[%clk
0:02:11.6]} 18... Nh7 {[%clk 0:01:48.5]} 19. h4 {[%clk 0:01:48.3]} 19... Bg4
{[%clk 0:01:37.8]} 20. Rg3 {[%clk 0:01:48.4]} 20... Nf6 {[%clk 0:01:34.8]} 21.
Rxf6 {[%clk 0:01:18]} 21... gxf6 {[%clk 0:01:29.3]} 22. e5 {[%clk 0:01:05.3]}
22... Kh8 {[%clk 0:01:13.3]} 23. Ne4 {[%clk 0:00:58.7]} 23... Bxe2 {[%clk
0:01:05.1]} 24. Qxe2 {[%clk 0:00:35.3]} 24... Qxd4+ {[%clk 0:00:55.4]} 25. Kh1
{[%clk 0:00:34.4]} 25... f5 {[%clk 0:00:52]} 26. Qh5 {[%clk 0:00:31.6]} 26...
Re6 {[%clk 0:00:50.4]} 27. Qxf7 {[%clk 0:00:20]} 27... Qxe5 {[%clk 0:00:46.9]}
28. Rg6 {[%clk 0:00:02.2]} 28... Rxg6 {[%clk 0:00:43.7]} 29. Qxg6 {[%clk
0:00:02.4]} 29... Qg7 {[%clk 0:00:41]} 30. Qxf5 {[%clk 0:00:01.4]} 30... Rxd3
{[%clk 0:00:40.3]} 31. Nf6 {[%clk 0:00:01.6]} 31... Rd8 {[%clk 0:00:30.2]} 32.
a4 {[%clk 0:00:01.5]} 32... Rf8 {[%clk 0:00:29.3]} 33. a5 {[%clk 0:00:01.9]} 0-1

[Event "*** Titled Tuesday Blitz"]
[Site "Chess.com"]
[Date "2020.12.01"]
[Round "10"]
[White "Agibileg"]
[Black "Kislov_Oleg"]
[Result "1-0"]
[WhiteElo "2514"]
[BlackElo "2357"]
[TimeControl "180+1"]
[EndTime "11:54:39 PST"]
[Termination "Agibileg won by checkmate"]

1. d4 {[%clk 0:03:00.9]} 1... Nf6 {[%clk 0:02:59.6]} 2. c4 {[%clk 0:03:00]} 2...
e6 {[%clk 0:02:59.5]} 3. Nc3 {[%clk 0:02:58.9]} 3... d5 {[%clk 0:02:59]} 4. cxd5
{[%clk 0:02:57.6]} 4... exd5 {[%clk 0:02:59.3]} 5. Bg5 {[%clk 0:02:56.1]} 5...
Be7 {[%clk 0:02:58.4]} 6. e3 {[%clk 0:02:56.4]} 6... c6 {[%clk 0:02:58.5]} 7.
Qc2 {[%clk 0:02:56.9]} 7... O-O {[%clk 0:02:57.6]} 8. Bd3 {[%clk 0:02:57.4]}
8... h6 {[%clk 0:02:55.1]} 9. Bh4 {[%clk 0:02:56.1]} 9... Re8 {[%clk 0:02:55.1]}
10. Nf3 {[%clk 0:02:56.3]} 10... Ne4 {[%clk 0:02:53.6]} 11. Bxe4 {[%clk
0:02:53.8]} 11... Bxh4 {[%clk 0:02:47.3]} 12. Bd3 {[%clk 0:02:51.6]} 12... Rxe3+
{[%clk 0:02:28.7]} 13. Kf1 {[%clk 0:02:46.1]} 13... Re8 {[%clk 0:02:03.2]} 14.
h3 {[%clk 0:02:40.2]} 14... Na6 {[%clk 0:01:55]} 15. a3 {[%clk 0:02:37.7]} 15...
Nc7 {[%clk 0:01:53.7]} 16. g3 {[%clk 0:02:30]} 16... Bf6 {[%clk 0:01:53.4]} 17.
Kg2 {[%clk 0:02:30.1]} 17... Qd6 {[%clk 0:01:51.6]} 18. Ne2 {[%clk 0:02:25.6]}
18... Ne6 {[%clk 0:01:44.2]} 19. Rad1 {[%clk 0:02:21]} 19... Bd7 {[%clk
0:01:38.5]} 20. Rhe1 {[%clk 0:02:19.6]} 20... Re7 {[%clk 0:01:30.7]} 21. Qd2
{[%clk 0:01:51.6]} 21... Rae8 {[%clk 0:01:28.9]} 22. Bb1 {[%clk 0:01:51.5]}
22... Ng5 {[%clk 0:01:16.1]} 23. Neg1 {[%clk 0:01:47.3]} 23... Ne4 {[%clk
0:01:09.3]} 24. Bxe4 {[%clk 0:01:32.8]} 24... Rxe4 {[%clk 0:00:56.4]} 25. Ne2
{[%clk 0:01:27.7]} 25... Bxh3+ {[%clk 0:00:37.1]} 26. Kxh3 {[%clk 0:01:24.2]}
26... Qe6+ {[%clk 0:00:37.1]} 27. Kg2 {[%clk 0:01:22.3]} 27... Rxe2 {[%clk
0:00:35.9]} 28. Rxe2 {[%clk 0:01:22.8]} 28... Qxe2 {[%clk 0:00:35.8]} 29. Re1
{[%clk 0:01:23.3]} 29... Qxe1 {[%clk 0:00:19.7]} 30. Nxe1 {[%clk 0:01:22.5]}
30... Re4 {[%clk 0:00:20]} 31. Nc2 {[%clk 0:01:19.7]} 31... g5 {[%clk
0:00:16.5]} 32. f3 {[%clk 0:01:19.5]} 32... Re7 {[%clk 0:00:16.4]} 33. Ne3
{[%clk 0:01:19.8]} 33... Re6 {[%clk 0:00:11.2]} 34. g4 {[%clk 0:01:19.1]} 34...
b6 {[%clk 0:00:09.9]} 35. Nf5 {[%clk 0:01:17.4]} 35... Bg7 {[%clk 0:00:07.8]}
36. Kf2 {[%clk 0:01:14.6]} 36... Bf8 {[%clk 0:00:07]} 37. Qc1 {[%clk 0:01:10.3]}
37... c5 {[%clk 0:00:07.5]} 38. Qd2 {[%clk 0:01:05.8]} 38... c4 {[%clk
0:00:06.8]} 39. Ne3 {[%clk 0:01:04]} 39... Rd6 {[%clk 0:00:06]} 40. Qc2 {[%clk
0:00:59.9]} 40... Bg7 {[%clk 0:00:06.4]} 41. Nf5 {[%clk 0:01:00.2]} 41... Re6
{[%clk 0:00:06.8]} 42. Qa4 {[%clk 0:00:56.2]} 42... Kh7 {[%clk 0:00:05.4]} 43.
Qxa7 {[%clk 0:00:55.1]} 43... b5 {[%clk 0:00:05.2]} 44. Qxf7 {[%clk 0:00:54.6]}
44... Rg6 {[%clk 0:00:04.5]} 45. Ne7 {[%clk 0:00:53.8]} 45... Rf6 {[%clk
0:00:04.5]} 46. Qg8# {[%clk 0:00:54.2]} 1-0

[Event "*** Titled Tuesday Blitz"]
[Site "Chess.com"]
[Date "2020.12.01"]
[Round "10"]
[White "AniJak"]
[Black "GMStefanova"]
[Result "0-1"]
[WhiteElo "2394"]
[BlackElo "2541"]
[TimeControl "180+1"]
[EndTime "11:54:46 PST"]
[Termination "GMStefanova won by resignation"]

1. e4 {[%clk 0:03:00.9]} 1... e5 {[%clk 0:02:59.5]} 2. Nc3 {[%clk 0:02:59.9]}
2... Nc6 {[%clk 0:02:57.5]} 3. g3 {[%clk 0:03:00.2]} 3... g6 {[%clk 0:02:51.6]}
4. Bg2 {[%clk 0:03:00.2]} 4... Bg7 {[%clk 0:02:51.6]} 5. Nge2 {[%clk 0:03:00.2]}
5... Nge7 {[%clk 0:02:50.8]} 6. O-O {[%clk 0:02:59.5]} 6... O-O {[%clk 0:02:51]}
7. d3 {[%clk 0:02:59.5]} 7... d6 {[%clk 0:02:50.6]} 8. f4 {[%clk 0:02:59.5]}
8... f5 {[%clk 0:02:48.6]} 9. Nd5 {[%clk 0:02:55]} 9... Nxd5 {[%clk 0:02:39]}
10. exd5 {[%clk 0:02:54.9]} 10... Nb8 {[%clk 0:02:33.2]} 11. c4 {[%clk
0:02:44.2]} 11... Nd7 {[%clk 0:02:32.4]} 12. Rb1 {[%clk 0:02:34.6]} 12... a5
{[%clk 0:02:28.8]} 13. b3 {[%clk 0:02:33.2]} 13... b6 {[%clk 0:02:25.8]} 14. Bb2
{[%clk 0:02:32.3]} 14... Re8 {[%clk 0:02:20]} 15. Kh1 {[%clk 0:02:30.3]} 15...
Nf6 {[%clk 0:01:56]} 16. h3 {[%clk 0:02:22.8]} 16... Bd7 {[%clk 0:01:41.6]} 17.
a3 {[%clk 0:01:59.2]} 17... Nh5 {[%clk 0:01:25.9]} 18. Kh2 {[%clk 0:01:56.9]}
18... Qe7 {[%clk 0:01:17.3]} 19. fxe5 {[%clk 0:01:53.6]} 19... Bxe5 {[%clk
0:01:13.3]} 20. Bxe5 {[%clk 0:01:45.1]} 20... Qxe5 {[%clk 0:01:08.7]} 21. Nf4
{[%clk 0:01:44.2]} 21... Nxf4 {[%clk 0:01:05]} 22. Rxf4 {[%clk 0:01:43.7]} 22...
Qe2 {[%clk 0:01:01.2]} 23. Qf1 {[%clk 0:01:25]} 23... Re3 {[%clk 0:00:54.3]} 24.
Qxe2 {[%clk 0:01:01.7]} 24... Rxe2 {[%clk 0:00:54]} 25. Kg1 {[%clk 0:01:02.4]}
25... Rae8 {[%clk 0:00:51.7]} 26. Bf1 {[%clk 0:01:00.8]} 26... Ra2 {[%clk
0:00:43.3]} 27. a4 {[%clk 0:01:00.2]} 27... Re3 {[%clk 0:00:42.4]} 28. Kh1
{[%clk 0:00:37.3]} 28... g5 {[%clk 0:00:32.1]} 29. Rd4 {[%clk 0:00:29.8]} 29...
Rxg3 {[%clk 0:00:30.7]} 30. Re1 {[%clk 0:00:26.2]} 30... Kf7 {[%clk 0:00:26.9]}
31. h4 {[%clk 0:00:24.5]} 31... h6 {[%clk 0:00:19.4]} 32. hxg5 {[%clk
0:00:24.2]} 32... hxg5 {[%clk 0:00:19.5]} 33. Re2 {[%clk 0:00:24.7]} 33... Rxe2
{[%clk 0:00:18.4]} 34. Bxe2 {[%clk 0:00:24.9]} 34... Re3 {[%clk 0:00:18.7]} 35.
Bf1 {[%clk 0:00:25.2]} 35... f4 {[%clk 0:00:19]} 36. Kg1 {[%clk 0:00:23.4]}
36... Bf5 {[%clk 0:00:19]} 37. Kf2 {[%clk 0:00:22.7]} 37... Kf6 {[%clk
0:00:19.1]} 38. c5 {[%clk 0:00:19.7]} 38... bxc5 {[%clk 0:00:19]} 39. Rc4 {[%clk
0:00:20.2]} 39... Bxd3 {[%clk 0:00:19]} 40. Bxd3 {[%clk 0:00:19.9]} 40... Rxd3
{[%clk 0:00:19.1]} 0-1

[Event "*** Titled Tuesday Blitz"]
[Site "Chess.com"]
[Date "2020.12.01"]
[Round "10"]
[White "rynos0411"]
[Black "Kavyev_Ruslan"]
[Result "0-1"]
[WhiteElo "2388"]
[BlackElo "2522"]
[TimeControl "180+1"]
[EndTime "11:54:47 PST"]
[Termination "Kavyev_Ruslan won by resignation"]

1. d4 {[%clk 0:03:00.9]} 1... Nf6 {[%clk 0:03:00]} 2. c4 {[%clk 0:03:00.6]} 2...
g6 {[%clk 0:03:00]} 3. Nc3 {[%clk 0:02:59.1]} 3... d5 {[%clk 0:03:00.4]} 4. cxd5
{[%clk 0:02:59.2]} 4... Nxd5 {[%clk 0:03:01.3]} 5. Na4 {[%clk 0:02:59.2]} 5...
e5 {[%clk 0:02:55.1]} 6. dxe5 {[%clk 0:02:54.8]} 6... Bb4+ {[%clk 0:02:55.2]} 7.
Bd2 {[%clk 0:02:54.2]} 7... Qe7 {[%clk 0:02:55.8]} 8. Nf3 {[%clk 0:02:47.5]}
8... Nc6 {[%clk 0:02:55.4]} 9. e3 {[%clk 0:02:43.2]} 9... O-O {[%clk 0:02:52.8]}
10. Be2 {[%clk 0:02:38.1]} 10... Nxe5 {[%clk 0:02:49.7]} 11. O-O {[%clk
0:02:35.5]} 11... Bxd2 {[%clk 0:02:45.2]} 12. Qxd2 {[%clk 0:02:35.5]} 12... c6
{[%clk 0:02:45.2]} 13. Rac1 {[%clk 0:02:31.7]} 13... Rd8 {[%clk 0:02:40]} 14.
Qe1 {[%clk 0:02:18.2]} 14... Bg4 {[%clk 0:02:33.5]} 15. Nxe5 {[%clk 0:01:54.8]}
15... Bxe2 {[%clk 0:02:32.8]} 16. Nxc6 {[%clk 0:01:51.9]} 16... bxc6 {[%clk
0:02:33.7]} 17. Qxe2 {[%clk 0:01:51.9]} 17... Nb4 {[%clk 0:02:31.3]} 18. a3
{[%clk 0:01:49]} 18... Nd3 {[%clk 0:02:30.6]} 19. Rc3 {[%clk 0:01:47.7]} 19...
Ne5 {[%clk 0:02:25.5]} 20. Nc5 {[%clk 0:01:45.3]} 20... Rab8 {[%clk 0:02:24.9]}
21. b4 {[%clk 0:01:44.9]} 21... a5 {[%clk 0:02:23.9]} 22. Rb3 {[%clk 0:01:37.9]}
22... axb4 {[%clk 0:02:22.5]} 23. axb4 {[%clk 0:01:38.8]} 23... Rb5 {[%clk
0:02:20.8]} 24. h3 {[%clk 0:01:33.3]} 24... Rdb8 {[%clk 0:02:19.7]} 25. Rfb1
{[%clk 0:01:33.7]} 25... Nd7 {[%clk 0:02:13.1]} 26. Nxd7 {[%clk 0:01:29.3]}
26... Qxd7 {[%clk 0:02:14]} 27. Qc4 {[%clk 0:01:29.6]} 27... Qb7 {[%clk
0:02:09.6]} 28. Qd4 {[%clk 0:01:20.6]} 28... c5 {[%clk 0:02:08.1]} 29. Qc4
{[%clk 0:00:37.5]} 29... Rxb4 {[%clk 0:02:06.3]} 30. Rxb4 {[%clk 0:00:36.4]}
30... cxb4 {[%clk 0:02:07.2]} 31. Rb3 {[%clk 0:00:36.8]} 31... Qe7 {[%clk
0:02:01.2]} 32. Qd4 {[%clk 0:00:36.1]} 32... Qb7 {[%clk 0:01:55.1]} 33. Kh2
{[%clk 0:00:29.1]} 33... Qb5 {[%clk 0:01:54.1]} 34. h4 {[%clk 0:00:26.1]} 34...
h5 {[%clk 0:01:53.9]} 35. g3 {[%clk 0:00:25.8]} 35... Qa4 {[%clk 0:01:53.7]} 36.
Qc4 {[%clk 0:00:23.7]} 36... Qa2 {[%clk 0:01:53.5]} 37. Kg2 {[%clk 0:00:19.3]}
37... Qd2 {[%clk 0:01:53.6]} 38. Rd3 {[%clk 0:00:17.6]} 38... Qb2 {[%clk
0:01:45.4]} 39. Rd7 {[%clk 0:00:17.4]} 39... Qf6 {[%clk 0:01:43.5]} 40. Rd3
{[%clk 0:00:17.4]} 40... Qe7 {[%clk 0:01:39.5]} 41. f3 {[%clk 0:00:12.1]} 41...
Qb7 {[%clk 0:01:38.3]} 42. e4 {[%clk 0:00:11.8]} 42... b3 {[%clk 0:01:38.4]} 43.
Rd1 {[%clk 0:00:11.4]} 43... b2 {[%clk 0:01:39]} 44. Rb1 {[%clk 0:00:11.9]}
44... Rc8 {[%clk 0:01:32.7]} 45. Qe2 {[%clk 0:00:10.4]} 45... Rb8 {[%clk
0:01:29.6]} 46. Qc2 {[%clk 0:00:07]} 46... Qb4 {[%clk 0:01:29.4]} 47. Kf2 {[%clk
0:00:04.3]} 47... Qd4+ {[%clk 0:01:29.5]} 48. Kg2 {[%clk 0:00:04.5]} 48... Kg7
{[%clk 0:01:29.6]} 49. Kf1 {[%clk 0:00:03]} 49... Rb4 {[%clk 0:01:24.9]} 50. Kg2
{[%clk 0:00:03.2]} 50... Rb6 {[%clk 0:01:24.4]} 51. Kf1 {[%clk 0:00:03]} 51...
Qe3 {[%clk 0:01:22.6]} 52. Kg2 {[%clk 0:00:03.1]} 52... Qd4 {[%clk 0:01:17.6]}
53. Qf2 {[%clk 0:00:03]} 53... Qxf2+ {[%clk 0:01:11.6]} 54. Kxf2 {[%clk
0:00:03.9]} 54... Kf6 {[%clk 0:01:12.4]} 55. Ke2 {[%clk 0:00:04.3]} 55... Ke5
{[%clk 0:01:12.9]} 56. Ke3 {[%clk 0:00:04.8]} 56... Rb3+ {[%clk 0:01:13.1]} 57.
Ke2 {[%clk 0:00:05.1]} 57... Kd4 {[%clk 0:01:13.5]} 58. Kd2 {[%clk 0:00:05.3]}
58... Rxf3 {[%clk 0:01:13.7]} 59. Rxb2 {[%clk 0:00:05.6]} 59... Rf2+ {[%clk
0:01:14.2]} 60. Kc1 {[%clk 0:00:05.3]} 60... Rxb2 {[%clk 0:01:15.1]} 0-1